[Event "85th Tata Steel Masters 2023"]
[White "So,Wesley"]
[Black "Aronian,Levon"]
[Site "Wijk aan Zee"]
[Round "4.5"]
[Annotator "TA"]
[Result "1/2-1/2"]
[Date "2023.01.17"]
[WhiteElo "2760"]
[BlackElo "2735"]
[PlyCount "91"]
[TimeControl "60"]

{[%evp 15,91,0,11,18,12,11,13,16,16,13,14,12,14,8,15,9,9,8,6,0,7,7,9,0,0,0,0,0,13,13,13,13,13,13,13,11,12,0,0,0,0,0,0,0,0,0,0,-16,-16,-17,-19,-18,-17,-18,0,0,0,0,0,0,0,-47,0,-47,0,-47,-47,-62,-47,-47,-28,-28,-28,-28,-28,-35,-12,-43]} 1. c4 {[%emt 0:0:8]} Nf6 {[%emt 0:0:7]} 2. Nc3 {[%emt 0:0:23]} e5 {[%emt 0:0:16]} 3. Nf3 {[%emt 0:0:15]} Nc6 {[%emt 0:0:6]} 4. g3 {[%emt 0:0:5]} d5 {[%emt 0:0:7]} 5. cxd5 {[%emt 0:0:8]} Nxd5 {[%emt 0:0:4]} 6. Bg2 {[%emt 0:0:5]} Bc5 {[%emt 0:0:7]} 7. O-O {[%emt 0:0:50]} O-O {[%emt 0:0:9]} 8. d3 {[%emt 0:1:9]} h6 {[%emt 0:0:28]} 9. Nxd5 {[%emt 0:0:38] A29: English Opening: Four Knights Variation with 4 g3.} Qxd5 {[%emt 0:0:7]} 10. b3 {[%emt 0:0:4]} e4 {[%emt 0:6:48]} 11. dxe4 {[%emt 0:0:14]} Qxe4 {[%emt 0:0:6]} 12. Bb2 {[%emt 0:0:7][%cal Yf3e5] Threatening Ne5!} Rd8 {[%emt 0:8:39]} 13. Qc1 {[%emt 0:1:49]} Qb4 {[%emt 0:0:29]} 14. Bc3 {[%emt 0:12:50] [#]} Qa3 $146 {[%emt 0:0:50]} ({Predecessor:} 14... Qb6 15. Qb2 Bf8 16. e3 a5 17. Rfd1 a4 18. Rxd8 Nxd8 19. Rd1 Nc6 20. Nd4 Nxd4 21. Rxd4 {½-½ Bobel,P (2331)-Cvak,R (2433) EU-ch 2020 sf13 email} )15. Qxa3 {[%emt 0:21:36]} Bxa3 {[%emt 0:0:6]} 16. Rfd1 {[%emt 0:0:4]} Be6 {[%emt 0:6:28]} 17. Nd2 {[%emt 0:11:6]} Nd4 {[%emt 0:5:51]} 18. Bxd4 {[%emt 0:1:7]} (18. Bxb7 $2 {loses.} Nxe2+ 19. Kg2 Nxc3 $19 )Rxd4 {[%emt 0:0:5]} 19. e3 {[%emt 0:0:24]} Rd6 {[%emt 0:3:28] [#] ...Rad8 is the strong threat.} 20. Nc4 {[%emt 0:0:40]} Bxc4 {[%emt 0:0:5]} 21. bxc4 {[%emt 0:0:7]} c6 {[%emt 0:0:20]} 22. Rxd6 {[%emt 0:1:14]} Bxd6 $11 {[%emt 0:0:8][%mdl 4096] Endgame KRB-KRB} 23. Rb1 {[%emt 0:0:5]} Rb8 {[%emt 0:0:6]} 24. h4 {[%emt 0:0:11]} Kf8 {[%emt 0:0:14]} 25. h5 {[%emt 0:0:13]} Ke7 {[%emt 0:0:38]} 26. Kf1 {[%emt 0:0:4]} Kd7 {[%emt 0:0:52]} 27. Ke2 {[%emt 0:0:5]} Kc7 {[%emt 0:0:16]} 28. f4 {[%emt 0:1:29]} Rd8 {[%emt 0:0:35]} 29. Rd1 {[%emt 0:0:53]} Bb4 {[%emt 0:0:22]} 30. Rxd8 {[%emt 0:0:7]} Kxd8 {[%emt 0:0:4] KB-KB} 31. g4 {[%emt 0:0:4]} f6 {[%emt 0:0:11]} 32. Kd3 {[%emt 0:0:6]} Ke7 {[%emt 0:0:6]} 33. Be4 {[%emt 0:0:7]} Ba3 {[%emt 0:0:12]} 34. Bf5 {[%emt 0:0:7]} Bc1 {[%emt 0:0:9]} 35. Bc8 {[%emt 0:1:5]} b5 {[%emt 0:0:20]} 36. cxb5 {[%emt 0:0:5]} cxb5 {[%emt 0:0:4]} 37. Ba6 {[%emt 0:0:3]} b4 {[%emt 0:0:5]} 38. Kc4 {[%emt 0:0:14]} (38. Kd4 $11 {is more appropriate.} )Bxe3 {[%emt 0:0:8]} (38... f5 $1 $15 )39. Kxb4 {[%emt 0:0:9]} (39. f5 $11 {feels stronger.} )Bxf4 {[%emt 0:0:39]} (39... f5 $15 {deserves consideration.} 40. gxf5 Kf6 )40. Kc3 {[%emt 0:0:15] [#]} (40. Bc8 $11 )f5 $1 $15 {[%emt 0:0:11]} 41. Bc8 {[%emt 0:50:10]} (41. gxf5 Kf6 )Be5+ {[%emt 0:50:41]} 42. Kd3 {[%emt 0:0:4]} f4 {[%emt 0:0:6]} 43. Ke4 {[%emt 0:0:5]} Bb8 {[%emt 0:0:16]} 44. a4 {[%emt 0:0:6]} a5 {[%emt 0:0:26]} 45. Ba6 {[%emt 0:0:5]} g5 {[%emt 0:0:26]} 46. Kf3 {[%emt 0:1:15] Weighted Error Value: White=0.06 (flawless) /Black=0.06 (flawless)} 1/2-1/2

[Event "85th Tata Steel Masters 2023"]
[White "Keymer,Vincent"]
[Black "Erigaisi Arjun"]
[Site "Wijk aan Zee"]
[Round "4.6"]
[Annotator "TA"]
[Result "1/2-1/2"]
[Date "2023.01.17"]
[WhiteElo "2696"]
[BlackElo "2722"]
[PlyCount "90"]
[TimeControl "60"]

{[%evp 9,90,8,14,5,9,6,14,5,15,12,18,12,10,0,0,0,0,4,4,7,17,0,0,-6,0,0,0,0,0,-22,-16,-3,0,-10,0,0,0,0,0,0,0,0,0,0,0,0,0,0,0,0,0,0,0,0,1,5,5,2,4,2,2,4,10,10,18,0,0,0,0,0,0,0,0,0,0,0,0,0,0,0,0,0,0]} 1. d4 {[%emt 0:0:3]} d5 {[%emt 0:0:7]} 2. Nf3 {[%emt 0:0:23]} Nf6 {[%emt 0:0:7]} 3. e3 {[%emt 0:0:3]} c5 {[%emt 0:0:41]} 4. Be2 {[%emt 0:0:10]} Nc6 {[%emt 0:0:7]} 5. c3 {[%emt 0:0:3]} e6 {[%emt 0:0:42] The position is equal.} 6. O-O {[%emt 0:0:6] [#] D05: Colle System with ...e6.} h6 $146 {[%emt 0:0:21]} ({Predecessor:} 6... Qc7 7. Nbd2 b6 8. b3 cxd4 9. cxd4 Bb7 10. Bb2 Bd6 11. Rc1 Rc8 12. Ne5 O-O 13. Bb5 Bxe5 14. dxe5 Qd7 15. exf6 {1-0 Keymer,V (2698)-Sevian,S (2687) MrDodgy Online Inv Finals 3rd blitz 2022 (1.8)} )7. a3 {[%emt 0:2:23]} c4 {[%emt 0:0:7]} 8. a4 {[%emt 0:12:34]} Bd6 {[%emt 0:17:51]} 9. b3 {[%emt 0:7:12]} cxb3 {[%emt 0:0:7]} 10. Nbd2 {[%emt 0:0:8]} (10. Ba3 {keeps more tension.} b2 11. Ra2 b6 12. Nbd2 )O-O {[%emt 0:8:8]} (10... b6 {seems wilder.} 11. Ba3 b2 12. Ra2 Bxa3 13. Rxa3 O-O )11. Qxb3 {[%emt 0:10:52]} (11. Ba3 {is more complex.} b2 12. Ra2 b6 13. Qb3 )Na5 {[%emt 0:3:38]} 12. Qa2 {[%emt 0:1:13]} b6 {[%emt 0:0:37]} 13. Ba3 {[%emt 0:12:34]} Bxa3 {[%emt 0:1:53]} 14. Qxa3 {[%emt 0:0:4]} Bb7 {[%emt 0:0:7]} 15. Rfc1 {[%emt 0:9:0]} Rc8 {[%emt 0:0:35]} 16. Ne5 {[%emt 0:0:3]} Nd7 {[%emt 0:4:22][%cal Yf6d7,Yd7b8,Yb8c6,Yc6e7,Ye7f5][%mdl 32]} 17. Nef3 {[%emt 0:0:27]} Rc7 {[%emt 0:1:35]} 18. Qb4 {[%emt 0:1:40]} Nb8 {[%emt 0:24:34]} 19. Rc2 {[%emt 0:3:5]} Nbc6 {[%emt 0:0:42]} 20. Qb2 {[%emt 0:1:6]} Ne7 {[%emt 0:0:49]} 21. Rac1 {[%emt 0:3:24]} Qa8 {[%emt 0:9:19]} 22. h3 {[%emt 0:6:3]} Rfc8 {[%emt 0:1:19]} 23. Qa3 {[%emt 0:0:7]} Nf5 {[%emt 0:3:6]} 24. Qb4 {[%emt 0:9:6]} Rd8 {[%emt 0:3:50]} 25. c4 {[%emt 0:3:24]} dxc4 {[%emt 0:0:7]} 26. Nxc4 {[%emt 0:0:6]} Nxc4 {[%emt 0:0:7]} 27. Rxc4 {[%emt 0:0:42]} Rxc4 {[%emt 0:0:6]} 28. Rxc4 {[%emt 0:0:33]} Ba6 {[%emt 0:0:7]} 29. Rc2 {[%emt 0:0:6]} Bxe2 {[%emt 0:0:41]} 30. Rxe2 {[%emt 0:0:3]} Qc6 {[%emt 0:0:55]} 31. a5 {[%emt 0:4:19]} Nd6 {[%emt 0:4:2]} 32. Ne5 {[%emt 0:2:3]} Qc7 {[%emt 0:1:46]} 33. axb6 {[%emt 0:0:31]} axb6 {[%emt 0:0:5]} 34. Rb2 {[%emt 0:1:44]} b5 {[%emt 0:3:40]} 35. Ra2 {[%emt 0:3:41]} f6 {[%emt 0:4:6]} 36. Nd3 {[%emt 0:1:58] next Nc5 is good for White.} Qc4 {[%emt 0:1:0] Repels Nc5} 37. Qa5 {[%emt 0:4:0]} Rc8 {[%emt 0:3:41]} 38. Nb4 {[%emt 0:5:58] [#] aiming for Rc2.} Qb3 {[%emt 0:2:36] Against Rc2} 39. Ra1 {[%emt 0:1:50] Prevents Rc1+.} Kh7 {[%emt 0:1:30]} 40. Qa3 {[%emt 0:6:20]} Qxa3 {[%emt 0:3:12]} 41. Rxa3 {[%emt 0:50:10]} Rc1+ {[%emt 0:50:14]} 42. Kh2 {[%emt 0:0:5]} Ne4 {[%emt 0:0:16]} 43. Nd3 {[%emt 0:0:0]} b4 {[%emt 0:0:0][%mdl 64] [#] Deflection} 44. Nxb4 {[%emt 0:0:0]} Nxf2 {[%emt 0:0:0]} 45. Nd3 {[%emt 0:0:0]} Nxd3 {[%emt 0:0:0] An even fight not without its subleties.   Weighted Error Value: White=0.03 (flawless) /Black=0.01 (flawless)} 1/2-1/2

[Event "85th Tata Steel Masters 2023"]
[White "Van Foreest,Jorden"]
[Black "Gukesh D"]
[Site "Wijk aan Zee"]
[Round "4.7"]
[Annotator "TA"]
[Result "1/2-1/2"]
[Date "2023.01.17"]
[WhiteElo "2681"]
[BlackElo "2725"]
[PlyCount "64"]
[TimeControl "60"]

{[%evp 16,64,22,17,38,0,0,0,31,14,10,6,0,0,67,58,66,60,57,57,60,62,57,56,66,44,54,32,32,50,29,6,15,13,5,13,24,29,22,12,16,11,27,25,23,25,24,25,25,11,16]} 1. e4 {[%emt 0:0:5]} c5 {[%emt 0:0:58]} 2. Nf3 {[%emt 0:0:10]} Nc6 {[%emt 0:1:10]} 3. Nc3 {[%emt 0:0:17]} e6 {[%emt 0:1:4]} 4. d4 {[%emt 0:0:11]} cxd4 {[%emt 0:0:7]} 5. Nxd4 {[%emt 0:0:6]} Nf6 {[%emt 0:0:11]} 6. Be2 {[%emt 0:0:18]} d6 {[%emt 0:4:43]} 7. Qd3 {[%emt 0:1:3]} Bd7 {[%emt 0:6:29]} 8. Bg5 {[%emt 0:10:54]} a6 {[%emt 0:8:7]} 9. O-O-O {[%emt 0:0:54]} h6 {[%emt 0:12:51] B62: Sicilian: Richter-Rauzer: 6...e6: Unusual White 7th moves.} 10. Nxc6 {[%emt 0:4:39]} Bxc6 {[%emt 0:0:6]} 11. Bf4 {[%emt 0:0:51]} Qa5 {[%emt 0:5:37] [#]} 12. Kb1 $146 {[%emt 0:10:53]} ({Predecessor:} 12. Bf3 O-O-O 13. Kb1 Be7 14. Qd2 e5 15. Nd5 Qxd2 16. Nxe7+ Kd7 17. Bxd2 Kxe7 18. Rhe1 {½-½ Bernal Varela,N (2038)-Wosch,A (2218) FICGS rapid silver 000024 email 2010 (2)} )Rd8 {[%emt 0:2:35]} 13. Rhe1 {[%emt 0:6:50]} Be7 {[%emt 0:11:53]} 14. Qg3 {[%emt 0:22:57]} g5 {[%emt 0:13:41]} ({Black should try} 14... Bxe4 $11 15. Qxg7 (15. Nxe4 Nxe4 16. Qf3 Qa4 $15 )Rg8 16. Qxh6 Bxg2 )15. Bd2 $1 $14 {[%emt 0:7:16][%cal Yc3d5]} ({Don't play} 15. Bxd6 Bxd6 16. Rxd6 Rxd6 17. Qxd6 Nxe4 18. Qb8+ Qd8 $11 )Qc7 {[%emt 0:0:30]} 16. Bd3 {[%emt 0:5:44]} Kd7 {[%emt 0:5:42]} 17. f3 {[%emt 0:6:9]} Kc8 {[%emt 0:0:35]} 18. Qf2 {[%emt 0:2:16]} Rhe8 {[%emt 0:4:47]} 19. Be3 {[%emt 0:1:7]} Nd7 {[%emt 0:0:20] Repels Bb6} 20. Ne2 {[%emt 0:4:57] White is more active.} Nc5 {[%emt 0:5:4]} 21. Nd4 {[%emt 0:0:20]} d5 {[%emt 0:3:38]} 22. Nxc6 {[%emt 0:5:46]} Qxc6 {[%emt 0:0:6]} 23. exd5 {[%emt 0:0:58]} (23. Bd4 {looks sharper.} Kb8 24. exd5 Nxd3 25. Ba7+ )Rxd5 {[%emt 0:0:34]} 24. Bc4 {[%emt 0:2:10]} Rxd1+ {[%emt 0:0:17]} 25. Rxd1 {[%emt 0:0:4]} Rd8 {[%emt 0:0:58]} (25... Na4 $5 {[%cal Rc6c4]} 26. Bb3 Nc5 $14 )26. Rxd8+ {[%emt 0:0:8]} Kxd8 {[%emt 0:0:4]} 27. Be2 {[%emt 0:3:48]} Qd5 {[%emt 0:2:34]} 28. a3 {[%emt 0:0:47]} f5 {[%emt 0:10:34]} 29. Qe1 {[%emt 0:1:13]} Nd7 {[%emt 0:0:43] [#]} 30. h4 $1 {[%emt 0:2:45]} Bf6 {[%emt 0:1:9]} 31. hxg5 {[%emt 0:0:36]} hxg5 {[%emt 0:0:5]} 32. Bc1 {[%emt 0:2:58]} Nc5 {[%emt 0:3:55] Weighted Error Value: White=0.07 (flawless) /Black=0.08 (flawless)} 1/2-1/2